fUSD/lending_fUSD_20250617
["ID","MTS","AMOUNT","RATE_DAILY","PERIOD"]
[366341718,1750198252422,-1553.27,0.00016438,2]
[366341719,1750198252433,-490.0,0.00016438,2]
[366341720,1750198252443,-490.0,0.00016438,2]
[366341721,1750198252453,-490.0,0.00016438,2]
[366341722,1750198252464,-490.0,0.00016438,2]
[366341723,1750198252474,-1382.28,0.00016438,2]
[366341724,1750198252484,-490.0,0.00016438,2]
[366341725,1750198252495,-490.0,0.00016438,2]
[366341726,1750198252505,-490.0,0.00016438,2]
[366341727,1750198252516,-490.0,0.00016438,2]
[366341728,1750198252525,-709.49,0.00016438,2]
[366341729,1750198252535,-490.0,0.00016438,2]
[366341730,1750198252545,-151.0,0.00016438,2]
[366341731,1750198252556,-246.69191403,0.00016438,2]
[366341732,1750198252566,-151.0,0.00016438,2]
[366341733,1750198252575,-490.0,0.00016438,2]
[366341734,1750198252585,-151.0,0.00016438,2]
[366341735,1750198252595,-151.0,0.00016438,2]
[366341736,1750198252606,-151.0,0.00016438,2]
[366341737,1750198252616,-490.0,0.00016438,2]
[366341738,1750198252626,-151.0,0.00016438,2]
[366341739,1750198252636,-151.0,0.00016438,2]
[366341740,1750198252646,-151.0,0.00016438,2]
[366341741,1750198252657,-2543.31,0.00016438,2]
[366341742,1750198252666,-151.0,0.00016438,2]
[366341743,1750198252676,-1576.52,0.00016438,2]
[366341744,1750198252685,-151.0,0.00016438,2]
[366341745,1750198252695,-151.0,0.00016438,2]
[366341746,1750198252705,-151.0,0.00016438,2]
[366341747,1750198252719,-151.0,0.00016438,2]
[366341748,1750198252729,-490.0,0.00016438,2]
[366341749,1750198252739,-151.0,0.00016438,2]
[366341750,1750198252749,-490.0,0.00016438,2]
[366341751,1750198252759,-151.0,0.00016438,2]
[366341752,1750198252769,-151.0,0.00016438,2]
[366341753,1750198252779,-151.0,0.00016438,2]
[366341754,1750198252792,-151.0,0.00016438,2]
[366341755,1750198252802,-151.0,0.00016438,2]
[366341756,1750198252811,-151.0,0.00016438,2]
[366341757,1750198252821,-151.0,0.00016438,2]
[366341758,1750198252831,-151.0,0.00016438,2]
[366341759,1750198252840,-682.52,0.00016438,2]
[366341760,1750198252850,-151.0,0.00016438,2]
[366341761,1750198252859,-151.0,0.00016438,2]
[366341762,1750198252870,-151.0,0.00016438,2]
[366341763,1750198252880,-151.0,0.00016438,2]
[366341764,1750198252890,-213.43375,0.00016438,2]
[366341765,1750198252900,-151.0,0.00016438,2]
[366341766,1750198252909,-151.0,0.00016438,2]
[366341767,1750198252919,-1817.1,0.00016438,2]
[366341768,1750198252929,-490.0,0.00016438,2]
[366341769,1750198252939,-490.0,0.00016438,2]
[366341770,1750198252948,-490.0,0.00016438,2]
[366341771,1750198252958,-490.0,0.00016438,2]
[366341772,1750198252968,-490.0,0.00016438,2]
[366341773,1750198252977,-490.0,0.00016438,2]
[366341774,1750198252987,-806.41,0.00016438,2]
[366341775,1750198252997,-490.0,0.00016438,2]
[366341776,1750198253007,-490.0,0.00016438,2]
[366341777,1750198253016,-490.0,0.00016438,2]
[366341778,1750198253025,-598.02861848,0.00016438,2]
[366341779,1750198253035,-490.0,0.00016438,2]
[366341780,1750198253045,-490.0,0.00016438,2]
[366341781,1750198253055,-490.0,0.00016438,2]
[366341782,1750198253064,-490.0,0.00016438,2]
[366341783,1750198253074,-457.1824861,0.00016438,2]
[366341784,1750198253084,-490.0,0.00016438,2]
[366341785,1750198253094,-490.0,0.00016438,2]
[366341786,1750198253103,-720.36,0.00016438,2]
[366341787,1750198253509,-490.0,0.00016438,2]
[366341788,1750198253519,-554.81,0.00016438,2]
[366341789,1750198253529,-673.87,0.00016438,2]
[366341790,1750198253540,-1590.54,0.00016438,2]
[366341791,1750198253550,-151.0,0.00016438,2]
[366341792,1750198253559,-151.0,0.00016438,2]
[366341793,1750198253570,-490.0,0.00016438,2]
[366341794,1750198253580,-741.84,0.00016438,2]
[366341795,1750198253590,-271.003379,0.00016438,2]
[366341796,1750198253601,-271.003379,0.00016438,2]
[366341797,1750198253611,-151.0,0.00016438,2]
[366341798,1750198253621,-490.0,0.00016438,2]
[366341799,1750198253631,-271.003379,0.00016438,2]
[366341800,1750198253642,-151.0,0.00016438,2]
[366341801,1750198253654,-7544.0,0.00016438,2]
[366341802,1750198253664,-271.003379,0.00016438,2]
[366341803,1750198253674,-151.0,0.00016438,2]
[366341804,1750198253683,-271.003379,0.00016438,2]
[366341805,1750198253692,-151.0,0.00016438,2]
[366341806,1750198253702,-271.003379,0.00016438,2]
[366341807,1750198253714,-151.0,0.00016438,2]
[366341808,1750198253724,-271.003379,0.00016438,2]
[366341809,1750198253734,-271.003379,0.00016438,2]
[366341810,1750198253744,-271.003379,0.00016438,2]
[366341811,1750198253754,-271.003379,0.00016438,2]
[366341812,1750198253765,-271.003379,0.00016438,2]
[366341813,1750198253775,-492.07,0.00016438,2]
[366341814,1750198253784,-271.003379,0.00016438,2]
[366341815,1750198253797,-271.003379,0.00016438,2]
[366341816,1750198253807,-271.003379,0.00016438,2]
[366341817,1750198253817,-490.0,0.00016438,2]
[366341818,1750198253828,-490.0,0.00016438,2]
[366341819,1750198253837,-490.0,0.00016438,2]
[366341820,1750198253847,-940.85,0.00016438,2]
[366341821,1750198253857,-460.0,0.00016438,2]
[366341822,1750198253867,-2860.41,0.00016438,2]
[366341823,1750198253878,-490.0,0.00016438,2]
[366341824,1750198253888,-490.0,0.00016438,2]
[366341825,1750198253899,-1419.89,0.00016438,2]
[366341826,1750198253908,-599.37,0.00016438,2]
[366341827,1750198253918,-490.0,0.00016438,2]
[366341828,1750198253928,-490.0,0.00016438,2]
[366341829,1750198253938,-490.0,0.00016438,2]
[366341830,1750198253948,-1401.31,0.00016438,2]
[366341831,1750198253958,-490.0,0.00016438,2]
[366341832,1750198253968,-490.0,0.00016438,2]
[366341833,1750198253979,-490.0,0.00016438,2]
[366341834,1750198253989,-1973.9,0.00016438,2]
[366341835,1750198253998,-7171.62,0.00016438,2]
[366341836,1750198254008,-508.98,0.00016438,2]
[366341837,1750198254019,-490.0,0.00016438,2]
[366341838,1750198254028,-460.0,0.00016438,2]
[366341839,1750198254038,-490.0,0.00016438,2]
[366341840,1750198254047,-536.48,0.00016438,2]
[366341841,1750198254057,-665.18,0.00016438,2]
[366341842,1750198254067,-490.0,0.00016438,2]
[366341843,1750198254077,-1770.98,0.00016438,2]
[366341844,1750198254088,-490.0,0.00016438,2]
[366341845,1750198254098,-490.0,0.00016438,2]
[366341846,1750198254108,-549.49,0.00016438,2]
[366341847,1750198254118,-151.0,0.00016438,2]
[366341848,1750198254128,-151.0,0.00016438,2]
[366341849,1750198254138,-409.74820346,0.00016438,2]
[366341850,1750198254150,-490.0,0.00016438,2]
[366341851,1750198254160,-815.58,0.00016438,2]
[366341852,1750198254171,-635.16,0.00016438,2]
[366341853,1750198254182,-15763.21,0.00016438,2]
[366341854,1750198254193,-490.0,0.00016438,2]
[366341855,1750198254202,-490.0,0.00016438,2]
[366341856,1750198254212,-490.0,0.00016438,2]
[366341857,1750198254223,-506.84,0.00016438,2]
[366341858,1750198254233,-490.0,0.00016438,2]
[366341859,1750198254243,-490.0,0.00016438,2]
[366341860,1750198254253,-490.0,0.00016438,2]
[366341861,1750198254264,-1682.83,0.00016438,2]
[366341862,1750198254274,-616.74642957,0.00016438,2]
[366341863,1750198254284,-593.0,0.00016438,2]
[366341864,1750198254293,-1174.1,0.00016438,2]
[366341865,1750198254303,-395.1025949,0.00016438,2]
[366341866,1750198254313,-490.0,0.00016438,2]
[366341867,1750198254323,-2655.89,0.00016438,2]
[366341868,1750198254333,-490.0,0.00016438,2]
[366341869,1750198254343,-490.0,0.00016438,2]
[366341870,1750198254352,-1143.83,0.00016438,2]
[366341871,1750198254362,-639.51,0.00016438,2]
[366341872,1750198254372,-490.0,0.00016438,2]
[366341873,1750198254383,-659.18,0.00016438,2]
[366341874,1750198254393,-490.0,0.00016438,2]
[366341875,1750198254403,-490.0,0.00016438,2]
[366341876,1750198254414,-1758.36,0.00016438,2]
[366341877,1750198254424,-490.0,0.00016438,2]
[366341878,1750198254433,-1350.54,0.00016438,2]
[366341879,1750198254444,-1377.79,0.00016438,2]
[366341880,1750198254455,-490.0,0.00016438,2]
[366341881,1750198254464,-490.0,0.00016438,2]
[366341882,1750198254475,-1129.59,0.00016438,2]
[366341883,1750198254485,-2846.13,0.00016438,2]
[366341884,1750198254495,-490.0,0.00016438,2]
[366341885,1750198254505,-490.0,0.00016438,2]
[366341886,1750198254515,-490.0,0.00016438,2]
[366341887,1750198254525,-1007.18,0.00016438,2]
[366341888,1750198254536,-787.12,0.00016438,2]
[366341889,1750198254545,-490.0,0.00016438,2]
[366341890,1750198254555,-1324.36091309,0.00016438,2]
[366341891,1750198271662,202.0,0.00013533,2]
[366341892,1750198360899,250.64,0.00013699,2]
[366341895,1750198380097,297.0,0.0002465,120]
[366341896,1750198398901,300.74078207,0.00024649,120]
[366341899,1750198443981,785.0,0.0002465,120]
[366341900,1750198445083,731.0,0.0002465,120]
[366341901,1750198445594,937.0,0.0002465,120]
[366341902,1750198501166,1962.0,0.0002465,120]
[366341903,1750198501990,255.0,0.0002465,120]
[366341904,1750198502795,550.0,0.0002465,120]
[366341905,1750198516174,200.0,0.00015213,7]
[366341906,1750198555791,1581.0,0.0002465,120]
[366341907,1750198556568,438.0,0.0002465,120]
[366341908,1750198556952,439.22,0.00024658,120]
[366341910,1750198908770,10000.0,0.00014,2]
[366341911,1750198952520,1000.0,0.00013231,2]
[366341912,1750198960728,5000.0,0.00014,2]
[366341913,1750198987475,4924.0,0.00014,2]
[366341914,1750198990168,395.0,0.00024649,120]
[366341915,1750199053817,-1000.0,0.00014353,2]
[366341916,1750199053846,-1000.0,0.0001449,2]
[366341917,1750199053873,-150.0,0.00014491,2]
[366341918,1750199053901,-300.0,0.00014752,2]
[366341919,1750199053928,-200.0,0.000149,2]
[366341920,1750199053957,-300.0,0.00014999,2]
[366341921,1750199053991,-50.0,0.00015,2]
[366341923,1750199072498,1000.0,0.00013847,2]
[366341924,1750199072547,727.7123517,0.00012781,2]
[366341925,1750199133142,1000.0,0.00012336,2]
[366341939,1750199322462,2011.03982525,0.000135,2]
[366341959,1750199372101,-200.0,0.00014605,2]
[366341960,1750199372130,-300.0,0.00014917,2]
[366341961,1750199372158,-300.0,0.00014917,2]
[366341962,1750199372186,-150.0,0.00014918,2]
[366341963,1750199372212,-150.0,0.00014918,2]
[366341964,1750199372238,-203.33230159,0.00014918,2]
[366341965,1750199372265,-168.15623681,0.00014918,2]
[366341966,1750199372291,-150.0,0.00014918,2]
[366341967,1750199372316,-150.0,0.00014918,2]
[366341968,1750199372342,-150.0,0.00014918,2]
[366341969,1750199372368,-150.0,0.00014918,2]
[366341970,1750199372394,-150.0,0.00014918,2]
[366341971,1750199372420,-150.0,0.00014918,2]
[366341972,1750199372446,-150.0,0.00014918,2]
[366341973,1750199372473,-150.0,0.00014918,2]
[366341974,1750199372499,-150.0,0.00014918,2]
[366341975,1750199372526,-203.33230159,0.00014935,2]
[366341976,1750199372553,-168.15623681,0.00014935,2]
[366341977,1750199372579,-150.0,0.00014946,2]
[366341978,1750199372607,-150.0,0.00014949,2]
[366341979,1750199372633,-203.33230159,0.00014951,2]
[366341980,1750199372660,-168.15623681,0.00014951,2]
[366341981,1750199372686,-203.33230159,0.00014968,2]
[366341982,1750199372977,-168.15623681,0.00014968,2]
[366341983,1750199373019,-150.0,0.00014971,2]
[366341984,1750199373048,-150.0,0.00014972,2]
[366341985,1750199373080,-150.0,0.00014975,2]
[366341986,1750199373106,-150.0,0.0001498,2]
[366341987,1750199373133,-203.33230159,0.00014985,2]
[366341988,1750199373162,-168.15623681,0.00014985,2]
[366341989,1750199373190,-150.0,0.0001499,2]
[366341990,1750199373218,-1200.0,0.00014999,2]
[366341991,1750199373244,-9950.0,0.00015,2]
[366341992,1750199373270,-250.0,0.00015,2]
[366341995,1750199428063,238.1,0.00013699,2]
[366342008,1750199431885,-203.33230159,0.00015002,2]
[366342010,1750199431895,-168.15623681,0.00015002,2]
[366342012,1750199431906,-150.0,0.00015004,2]
[366342014,1750199431915,-150.0,0.00015012,2]
[366342016,1750199431925,-0.04472717,0.00015018,2]
[366342017,1750199431945,-203.28757442,0.00015018,2]
[366342018,1750199431955,-168.15623681,0.00015018,2]
[366342019,1750199431966,-500.0,0.00015022,2]
[366342020,1750199431975,-150.0,0.00015025,2]
[366342021,1750199431985,-150.0,0.00015032,2]
[366342022,1750199431995,-203.33230159,0.00015035,2]
[366342023,1750199432006,-168.15623681,0.00015035,2]
[366342024,1750199432016,-150.0,0.00015043,2]
[366342025,1750199432026,-250.0,0.00015049,2]
[366342026,1750199432035,-203.33230159,0.00015052,2]
[366342027,1750199432045,-168.15623681,0.00015052,2]
[366342028,1750199432055,-150.0,0.00015061,2]
[366342029,1750199432065,-150.0,0.00015062,2]
[366342030,1750199432075,-203.33230159,0.00015068,2]
[366342031,1750199432085,-168.15623681,0.00015068,2]
[366342032,1750199432095,-150.0,0.00015068,2]
[366342033,1750199432105,-150.0,0.00015074,2]
[366342034,1750199432115,-150.0,0.00015078,2]
[366342035,1750199432124,-150.0,0.00015084,2]
[366342036,1750199432133,-203.33230159,0.00015085,2]
[366342037,1750199432143,-168.15623681,0.00015085,2]
[366342038,1750199432156,-150.0,0.00015089,2]
[366342039,1750199432166,-1200.0,0.00015101,2]
[366342040,1750199432176,-203.33230159,0.00015102,2]
[366342041,1750199432185,-168.15623681,0.00015102,2]
[366342042,1750199432195,-150.0,0.00015105,2]
[366342043,1750199432206,-150.0,0.00015118,2]
[366342044,1750199432215,-203.33230159,0.00015119,2]
[366342045,1750199432226,-168.15623681,0.00015119,2]
[366342046,1750199432236,-150.0,0.00015132,2]
[366342047,1750199432246,-300.0,0.00015134,2]
[366342048,1750199432256,-150.0,0.00015134,2]
[366342049,1750199432266,-203.33230159,0.00015135,2]
[366342050,1750199432277,-133.4377124,0.00015135,2]
[366342051,1750199432311,-34.71852441,0.00015135,2]
[366342052,1750199432322,-150.0,0.00015137,2]
[366342053,1750199432331,-150.0,0.00015146,2]
[366342054,1750199432341,-1864.17635207,0.00015151,2]
[366342055,1750199432460,-2330.20513933,0.00015151,2]
[366342056,1750199432472,-491.23384,0.00015151,2]
[366342057,1750199432488,-19214.3846686,0.00015151,2]
[366342058,1750199432498,-203.33230159,0.00015152,2]
[366342059,1750199432508,-168.15623681,0.00015152,2]
[366342060,1750199432518,-150.0,0.00015168,2]
[366342061,1750199432528,-203.33230159,0.00015169,2]
[366342062,1750199432538,-168.15623681,0.00015169,2]
[366342063,1750199432547,-339.85,0.00015174,2]
[366342064,1750199432556,-150.0,0.00015175,2]
[366342065,1750199432566,-150.0,0.00015185,2]
[366342066,1750199432576,-203.33230159,0.00015186,2]
[366342067,1750199432586,-168.15623681,0.00015186,2]
[366342068,1750199432595,-150.0,0.00015194,2]
[366342069,1750199432605,-150.0,0.00015194,2]
[366342070,1750199432615,-150.0,0.00015194,2]
[366342071,1750199432625,-422.47,0.00015196,2]
[366342072,1750199432635,-150.0,0.00015199,2]
[366342073,1750199432644,-203.33230159,0.00015202,2]
[366342074,1750199432654,-168.15623681,0.00015202,2]
[366342075,1750199432663,-150.0,0.00015204,2]
[366342076,1750199432673,-150.0,0.00015206,2]
[366342077,1750199432683,-1000.0,0.00015213,2]
[366342078,1750199432693,-203.33230159,0.00015219,2]
[366342079,1750199432704,-168.15623681,0.00015219,2]
[366342080,1750199432713,-150.0,0.00015219,2]
[366342081,1750199432723,-294.93,0.00015222,2]
[366342082,1750199432733,-150.0,0.00015231,2]
[366342083,1750199432743,-150.0,0.00015232,2]
[366342084,1750199432753,-203.33230159,0.00015236,2]
[366342085,1750199432763,-168.15623681,0.00015236,2]
[366342086,1750199432773,-150.0,0.00015239,2]
[366342087,1750199432784,-150.0,0.00015249,2]
[366342088,1750199432794,-150.0,0.00015249,2]
[366342089,1750199432804,-203.33230159,0.00015253,2]
[366342090,1750199432813,-168.15623681,0.00015253,2]
[366342091,1750199432823,-150.0,0.00015261,2]
[366342092,1750199432833,-150.0,0.00015262,2]
[366342093,1750199432843,-203.33230159,0.00015269,2]
[366342094,1750199432853,-168.15623681,0.00015269,2]
[366342095,1750199432862,-150.0,0.00015278,2]
[366342096,1750199432872,-150.0,0.00015279,2]
[366342097,1750199432882,-203.33230159,0.00015286,2]
[366342098,1750199432891,-168.15623681,0.00015286,2]
[366342099,1750199432902,-150.0,0.00015289,2]
[366342100,1750199432911,-150.0,0.00015292,2]
[366342101,1750199432920,-150.0,0.00015293,2]
[366342102,1750199432930,-203.33230159,0.00015303,2]
[366342103,1750199432939,-168.15623681,0.00015303,2]
[366342104,1750199432950,-150.0,0.00015318,2]
[366342105,1750199432959,-203.33230159,0.0001532,2]
[366342106,1750199432970,-168.15623681,0.0001532,2]
[366342107,1750199432979,-150.0,0.00015324,2]
[366342108,1750199432989,-200.0,0.00015325,2]
[366342109,1750199432999,-203.33230159,0.00015336,2]
[366342110,1750199433008,-168.15623681,0.00015336,2]
[366342111,1750199433018,-150.0,0.00015346,2]
[366342112,1750199433029,-150.0,0.00015346,2]
[366342113,1750199433040,-150.0,0.0001535,2]
[366342114,1750199433051,-203.33230159,0.00015353,2]
[366342115,1750199433061,-168.15623681,0.00015353,2]
[366342116,1750199433072,-150.0,0.00015356,2]
[366342117,1750199433082,-203.33230159,0.0001537,2]
[366342118,1750199433091,-168.15623681,0.0001537,2]
[366342119,1750199433101,-150.0,0.0001537,2]
[366342120,1750199433111,-150.0,0.00015375,2]
[366342121,1750199433120,-203.33230159,0.00015387,2]
[366342122,1750199433130,-168.15623681,0.00015387,2]
[366342123,1750199433140,-150.0,0.00015387,2]
[366342124,1750199433153,-150.0,0.00015399,2]
[366342125,1750199433163,-203.33230159,0.00015403,2]
[366342126,1750199433173,-168.15623681,0.00015403,2]
[366342127,1750199433182,-150.0,0.00015404,2]
[366342128,1750199433193,-150.0,0.00015415,2]
[366342129,1750199433203,-150.0,0.00015418,2]
[366342130,1750199433212,-203.33230159,0.0001542,2]
[366342131,1750199433221,-168.15623681,0.0001542,2]
[366342132,1750199433232,-150.0,0.00015422,2]
[366342133,1750199433242,-200.0,0.00015427,2]
[366342134,1750199433251,-150.0,0.00015432,2]
[366342135,1750199433262,-203.33230159,0.00015437,2]
[366342136,1750199433271,-168.15623681,0.00015437,2]
[366342137,1750199433283,-150.0,0.00015449,2]
[366342138,1750199433293,-150.0,0.00015452,2]
[366342139,1750199433303,-203.33230159,0.00015454,2]
[366342140,1750199433313,-168.15623681,0.00015454,2]
[366342141,1750199433323,-150.0,0.00015461,2]
[366342142,1750199433332,-203.33230159,0.0001547,2]
[366342143,1750199433341,-168.15623681,0.0001547,2]
[366342144,1750199433351,-150.0,0.0001547,2]
[366342145,1750199433360,-150.0,0.0001547,2]
[366342146,1750199433370,-150.0,0.0001547,2]
[366342147,1750199433380,-150.0,0.00015481,2]
[366342148,1750199433389,-203.33230159,0.00015487,2]
[366342149,1750199433400,-168.15623681,0.00015487,2]
[366342150,1750199433410,-150.0,0.00015489,2]
[366342151,1750199433420,-150.0,0.00015494,2]
[366342152,1750199433429,-203.33230159,0.00015504,2]
[366342153,1750199433439,-168.15623681,0.00015504,2]
[366342154,1750199433448,-150.0,0.00015506,2]
[366342155,1750199433458,-150.0,0.00015512,2]
[366342156,1750199433467,-150.0,0.00015518,2]
[366342157,1750199433477,-203.33230159,0.00015521,2]
[366342158,1750199433487,-168.15623681,0.00015521,2]
[366342159,1750199433498,-150.0,0.00015521,2]
[366342160,1750199433508,-203.33230159,0.00015537,2]
[366342161,1750199433518,-168.15623681,0.00015537,2]
[366342162,1750199433528,-150.0,0.00015543,2]
[366342163,1750199433539,-150.0,0.00015547,2]
[366342164,1750199433548,-203.33230159,0.00015554,2]
[366342165,1750199433557,-168.15623681,0.00015554,2]
[366342166,1750199433568,-150.0,0.00015559,2]
[366342167,1750199433577,-150.0,0.00015566,2]
[366342168,1750199433589,-203.33230159,0.00015571,2]
[366342169,1750199433598,-168.15623681,0.00015571,2]
[366342170,1750199433608,-150.0,0.00015575,2]
[366342171,1750199433617,-150.0,0.00015575,2]
[366342172,1750199433627,-150.0,0.00015581,2]
[366342173,1750199433637,-203.33230159,0.00015588,2]
[366342174,1750199433648,-168.15623681,0.00015588,2]
[366342175,1750199433658,-150.0,0.00015604,2]
[366342176,1750199433668,-203.33230159,0.00015604,2]
[366342177,1750199433677,-168.15623681,0.00015604,2]
[366342178,1750199433687,-150.0,0.00015606,2]
[366342179,1750199433697,-150.0,0.00015613,2]
[366342180,1750199433707,-203.33230159,0.00015621,2]
[366342181,1750199433718,-168.15623681,0.00015621,2]
[366342182,1750199433727,-150.0,0.00015632,2]
[366342183,1750199433737,-150.0,0.00015637,2]
[366342184,1750199433746,-203.33230159,0.00015638,2]
[366342185,1750199433756,-168.15623681,0.00015638,2]
[366342186,1750199433765,-150.0,0.00015638,2]
[366342187,1750199433775,-151.0,0.00015641,2]
[366342188,1750199433785,-266.39880271,0.00015641,2]
[366342189,1750199433795,-500.0,0.00015641,2]
[366342190,1750199433805,-500.0,0.00015641,2]
[366342191,1750199433814,-500.0,0.00015641,2]
[366342192,1750199433824,-500.0,0.00015641,2]
[366342193,1750199433834,-668.65185757,0.00015641,2]
[366342194,1750199433843,-500.0,0.00015641,2]
[366342195,1750199433854,-1957.856,0.00015641,2]
[366342196,1750199433864,-1000.0,0.00015641,2]
[366342197,1750199433874,-1000.0,0.00015641,2]
[366342198,1750199433884,-500.0,0.00015641,2]
[366342199,1750199433894,-1000.0,0.00015641,2]
[366342200,1750199433904,-441.07638337,0.00015641,2]
[366342201,1750199433913,-1000.0,0.00015641,2]
[366342202,1750199433923,-281.75575539,0.00015641,2]
[366342203,1750199433933,-19.65314626,0.00015641,2]
[366342204,1750199433947,-980.34685374,0.00015641,2]
[366342205,1750199433957,-875.2746503,0.00015641,2]
[366342206,1750199433967,-207.4,0.00015641,2]
[366342207,1750199433977,-203.33230159,0.00015654,2]
[366342208,1750199433987,-168.15623681,0.00015654,2]
[366342209,1750199433996,-150.0,0.00015661,2]
[366342210,1750199434007,-150.0,0.00015664,2]
[366342211,1750199434017,-150.0,0.00015666,2]
[366342212,1750199434030,-38.50879159,0.00015668,2]
[366342213,1750199434042,-111.49120841,0.00015668,2]
[366342214,1750199434052,-203.33230159,0.00015671,2]
[366342215,1750199434062,-168.15623681,0.00015671,2]
[366342216,1750199434072,-150.0,0.00015671,2]
[366342217,1750199434081,-203.33230159,0.00015688,2]
[366342218,1750199434091,-168.15623681,0.00015688,2]
[366342219,1750199434101,-150.0,0.00015689,2]
[366342220,1750199434111,-2030.296672,0.00015696,2]
[366342221,1750199434121,-150.0,0.000157,2]
[366342222,1750199434130,-203.33230159,0.00015705,2]
[366342223,1750199434140,-168.15623681,0.00015705,2]
[366342224,1750199434151,-150.0,0.00015711,2]
[366342225,1750199434161,-150.0,0.00015718,2]
[366342226,1750199434171,-150.0,0.00015718,2]
[366342227,1750199434181,-150.0,0.0001572,2]
[366342228,1750199434191,-203.33230159,0.00015721,2]
[366342229,1750199434201,-168.15623681,0.00015721,2]
[366342230,1750199434210,-150.0,0.00015731,2]
[366342231,1750199434220,-203.33230159,0.00015738,2]
[366342232,1750199434229,-168.15623681,0.00015738,2]
[366342233,1750199434240,-150.0,0.00015747,2]
[366342234,1750199434249,-150.0,0.00015747,2]
[366342235,1750199434259,-150.0,0.00015747,2]
[366342236,1750199434269,-150.0,0.00015747,2]
[366342237,1750199434279,-150.0,0.00015747,2]
[366342238,1750199434289,-2105.41764886,0.00015751,2]
[366342239,1750199434299,-203.33230159,0.00015755,2]
[366342240,1750199434308,-168.15623681,0.00015755,2]
[366342241,1750199434317,-150.0,0.00015762,2]
[366342242,1750199434327,-203.33230159,0.00015772,2]
[366342243,1750199434337,-168.15623681,0.00015772,2]
[366342244,1750199434347,-150.0,0.00015773,2]
[366342245,1750199434357,-150.0,0.00015775,2]
[366342246,1750199434366,-150.0,0.00015783,2]
[366342247,1750199434376,-203.33230159,0.00015788,2]
[366342248,1750199434385,-168.15623681,0.00015788,2]
[366342249,1750199434395,-150.0,0.00015793,2]
[366342250,1750199434405,-150.0,0.00015804,2]
[366342251,1750199434415,-203.33230159,0.00015805,2]
[366342252,1750199434425,-168.15623681,0.00015805,2]
[366342253,1750199434434,-2183.31810187,0.00015806,2]
[366342254,1750199434444,-203.33230159,0.00015822,2]
[366342255,1750199434453,-168.15623681,0.00015822,2]
[366342256,1750199434463,-150.0,0.00015822,2]
[366342257,1750199434473,-150.0,0.00015825,2]
[366342258,1750199434483,-150.0,0.00015827,2]
[366342259,1750199434493,-150.0,0.00015832,2]
[366342260,1750199434503,-203.33230159,0.00015839,2]
[366342261,1750199434513,-168.15623681,0.00015839,2]
[366342262,1750199434523,-166.57,0.00015849,2]
[366342263,1750199434533,-150.0,0.00015855,2]
[366342264,1750199434543,-203.33230159,0.00015855,2]
[366342265,1750199434553,-168.15623681,0.00015855,2]
[366342266,1750199434562,-150.0,0.00015856,2]
[366342267,1750199434573,-150.0,0.00015861,2]
[366342268,1750199434582,-2264.10087164,0.00015861,2]
[366342269,1750199434592,-384.11,0.0001587,2]
[366342270,1750199434602,-203.33230159,0.00015872,2]
[366342271,1750199434612,-168.15623681,0.00015872,2]
[366342272,1750199434622,-150.0,0.0001588,2]
[366342273,1750199434631,-150.0,0.00015887,2]